[Event "Titled Tuesday Blitz February 21 Late 2023"]
[White "Li, Hui"]
[Black "Zarubitski, Viachaslau"]
[WhiteFideId "15400310"]
[BlackFideId "13509373"]
[WhiteElo "1963"]
[BlackElo "2423"]
[Result "1/2-1/2"]
[Round "01"]
[TimeControl "180+2"]
[Date "2023.02.21"]
[WhiteClock "0:00:04"]
[BlackClock "0:00:04"]

1. e4 {[%clk 0:02:59]}  e5 {[%clk 0:02:57]} 2. Nf3 {[%clk 0:02:58]}  Nf6 {[%clk 0:02:57]} 3. Nxe5 {[%clk 0:02:58]}  d6 {[%clk 0:02:58]} 4. Nf3 {[%clk 0:02:58]}  Nxe4 {[%clk 0:02:59]} 5. d4 {[%clk 0:02:57]}  d5 {[%clk 0:02:58]} 6. Bd3 {[%clk 0:02:58]}  Bd6 {[%clk 0:02:59]} 7. O-O {[%clk 0:02:57]}  O-O {[%clk 0:02:59]} 8. c4 {[%clk 0:02:58]}  c6 {[%clk 0:03:00]} 9. Qc2 {[%clk 0:02:58]}  Re8 {[%clk 0:02:59]} 10. Nc3 {[%clk 0:02:57]}  Bf5 {[%clk 0:02:48]} 11. Re1 {[%clk 0:02:57]}  Nd7 {[%clk 0:02:16]} 12. Bg5 {[%clk 0:02:07]}  f6 {[%clk 0:00:41]} 13. Bh4 {[%clk 0:01:54]}  Bg6 {[%clk 0:00:27]} 14. Nxe4 {[%clk 0:01:39]}  dxe4 {[%clk 0:00:25]} 15. Bxe4 {[%clk 0:01:39]}  Rxe4 {[%clk 0:00:23]} 16. Rxe4 {[%clk 0:01:39]}  Qa5 {[%clk 0:00:21]} 17. Qe2 {[%clk 0:01:31]}  Bxe4 {[%clk 0:00:17]} 18. Qxe4 {[%clk 0:01:32]}  Nf8 {[%clk 0:00:17]} 19. Bg3 {[%clk 0:01:28]}  Bxg3 {[%clk 0:00:17]} 20. hxg3 {[%clk 0:01:27]}  Rd8 {[%clk 0:00:18]} 21. a3 {[%clk 0:01:18]}  Qa4 {[%clk 0:00:17]} 22. Qe2 {[%clk 0:01:12]}  Qb3 {[%clk 0:00:17]} 23. Rc1 {[%clk 0:01:03]}  a5 {[%clk 0:00:17]} 24. Qc2 {[%clk 0:01:01]}  Qb6 {[%clk 0:00:15]} 25. Qc3 {[%clk 0:00:58]}  a4 {[%clk 0:00:14]} 26. c5 {[%clk 0:00:49]}  Qb5 {[%clk 0:00:14]} 27. Qc4+ {[%clk 0:00:49]}  Qxc4 {[%clk 0:00:11]} 28. Rxc4 {[%clk 0:00:50]}  Ra8 {[%clk 0:00:11]} 29. d5 {[%clk 0:00:44]}  cxd5 {[%clk 0:00:11]} 30. Rd4 {[%clk 0:00:44]}  Ne6 {[%clk 0:00:11]} 31. Rxd5 {[%clk 0:00:43]}  Rc8 {[%clk 0:00:11]} 32. Nd4 {[%clk 0:00:39]}  Rxc5 {[%clk 0:00:07]} 33. Rxc5 {[%clk 0:00:37]}  Nxc5 {[%clk 0:00:08]} 34. Kf1 {[%clk 0:00:29]}  Nd3 {[%clk 0:00:08]} 35. b3 {[%clk 0:00:29]}  axb3 {[%clk 0:00:05]} 36. Nxb3 {[%clk 0:00:30]}  Kf7 {[%clk 0:00:05]} 37. Ke2 {[%clk 0:00:29]}  Ne5 {[%clk 0:00:06]} 38. Nc5 {[%clk 0:00:29]}  b6 {[%clk 0:00:05]} 39. Ne4 {[%clk 0:00:26]}  Ke6 {[%clk 0:00:05]} 40. f3 {[%clk 0:00:24]}  Kd5 {[%clk 0:00:05]} 41. Nc3+ {[%clk 0:00:15]}  Kc4 {[%clk 0:00:05]} 42. Na4 {[%clk 0:00:16]}  Kb5 {[%clk 0:00:04]} 43. Nc3+ {[%clk 0:00:15]}  Kc5 {[%clk 0:00:03]} 44. Na4+ {[%clk 0:00:13]}  Kc6 {[%clk 0:00:04]} 45. g4 {[%clk 0:00:08]}  b5 {[%clk 0:00:03]} 46. Nb2 {[%clk 0:00:08]}  Kc5 {[%clk 0:00:03]} 47. Kd2 {[%clk 0:00:07]}  Nc4+ {[%clk 0:00:02]} 48. Kc3 {[%clk 0:00:05]}  Nxa3 {[%clk 0:00:01]} 49. Nd3+ {[%clk 0:00:05]}  Kb6 {[%clk 0:00:02]} 50. Kb4 {[%clk 0:00:05]}  Nc4 {[%clk 0:00:02]} 51. Nc5 {[%clk 0:00:05]}  Nd6 {[%clk 0:00:03]} 52. Ne6 {[%clk 0:00:05]}  g6 {[%clk 0:00:03]} 53. Nf8 {[%clk 0:00:05]}  h5 {[%clk 0:00:02]} 54. Nxg6 {[%clk 0:00:05]}  hxg4 {[%clk 0:00:03]} 55. fxg4 {[%clk 0:00:06]}  Kc6 {[%clk 0:00:03]} 56. Ne7+ {[%clk 0:00:06]}  Kd7 {[%clk 0:00:03]} 57. Nd5 {[%clk 0:00:06]}  Ke6 {[%clk 0:00:04]} 58. Nc7+ {[%clk 0:00:06]}  Ke5 {[%clk 0:00:05]} 59. Kc5 {[%clk 0:00:05]}  Ne4+ {[%clk 0:00:02]} 60. Kxb5 {[%clk 0:00:05]}  Nf2 {[%clk 0:00:02]} 61. Ne8 {[%clk 0:00:04]}  Nxg4 {[%clk 0:00:02]} 62. Nxf6 {[%clk 0:00:03]}  Nxf6 {[%clk 0:00:03]} 63. g4 {[%clk 0:00:04]}  Kf4 {[%clk 0:00:04]} 64. g5 {[%clk 0:00:04]}  Kxg5 {[%clk 0:00:04]} 1/2-1/2


[Site "https://www.chess.com"]

[Event "Titled Tuesday Blitz February 21 Late 2023"]
[White "Trost, Edvin"]
[Black "Vaglio Mattey, Emanuel"]
[WhiteFideId "1729519"]
[BlackFideId "6504167"]
[WhiteElo "2399"]
[BlackElo "2155"]
[Result "1-0"]
[Round "01"]
[TimeControl "180+2"]
[Date "2023.02.21"]
[WhiteClock "0:01:07"]
[BlackClock "0:00:08"]

1. Nf3 {[%clk 0:03:00]}  g6 {[%clk 0:02:49]} 2. g3 {[%clk 0:02:58]}  Bg7 {[%clk 0:02:49]} 3. Bg2 {[%clk 0:02:58]}  d6 {[%clk 0:02:49]} 4. O-O {[%clk 0:02:58]}  Nc6 {[%clk 0:02:49]} 5. d4 {[%clk 0:02:57]}  Bg4 {[%clk 0:02:44]} 6. d5 {[%clk 0:02:55]}  Bxf3 {[%clk 0:02:42]} 7. exf3 {[%clk 0:02:44]}  Nd4 {[%clk 0:02:34]} 8. c3 {[%clk 0:02:40]}  Nf5 {[%clk 0:02:34]} 9. Qb3 {[%clk 0:02:38]}  Rb8 {[%clk 0:02:33]} 10. Qa4+ {[%clk 0:02:35]}  b5 {[%clk 0:02:24]} 11. Qxa7 {[%clk 0:02:32]}  Nf6 {[%clk 0:02:24]} 12. f4 {[%clk 0:02:30]}  O-O {[%clk 0:02:21]} 13. Qa5 {[%clk 0:02:30]}  b4 {[%clk 0:02:11]} 14. Qa4 {[%clk 0:02:07]}  bxc3 {[%clk 0:02:02]} 15. Nxc3 {[%clk 0:02:08]}  Nd7 {[%clk 0:02:03]} 16. Qd1 {[%clk 0:02:04]}  Nc5 {[%clk 0:01:56]} 17. Re1 {[%clk 0:02:04]}  e5 {[%clk 0:01:38]} 18. dxe6 {[%clk 0:02:02]}  fxe6 {[%clk 0:01:38]} 19. Ne4 {[%clk 0:01:56]}  Nxe4 {[%clk 0:01:31]} 20. Rxe4 {[%clk 0:01:56]}  Nd4 {[%clk 0:01:28]} 21. Rxd4 {[%clk 0:01:56]}  Bxd4 {[%clk 0:01:28]} 22. Qxd4 {[%clk 0:01:57]}  c5 {[%clk 0:01:18]} 23. Qe4 {[%clk 0:01:55]}  Qd7 {[%clk 0:01:16]} 24. b3 {[%clk 0:01:54]}  d5 {[%clk 0:01:16]} 25. Qe5 {[%clk 0:01:54]}  Rbc8 {[%clk 0:01:08]} 26. Bh3 {[%clk 0:01:53]}  Rfe8 {[%clk 0:01:05]} 27. Bb2 {[%clk 0:01:53]}  d4 {[%clk 0:01:05]} 28. Re1 {[%clk 0:01:54]}  Kf7 {[%clk 0:01:05]} 29. b4 {[%clk 0:01:49]}  Qd5 {[%clk 0:00:52]} 30. bxc5 {[%clk 0:01:49]}  Rxc5 {[%clk 0:00:47]} 31. Bxd4 {[%clk 0:01:47]}  Qxe5 {[%clk 0:00:46]} 32. Rxe5 {[%clk 0:01:40]}  Rxe5 {[%clk 0:00:40]} 33. Bxe5 {[%clk 0:01:41]}  Ra8 {[%clk 0:00:40]} 34. Bg4 {[%clk 0:01:41]}  Rxa2 {[%clk 0:00:40]} 35. h4 {[%clk 0:01:42]}  h5 {[%clk 0:00:40]} 36. Bf3 {[%clk 0:01:42]}  Ra3 {[%clk 0:00:40]} 37. Kg2 {[%clk 0:01:43]}  Ra4 {[%clk 0:00:40]} 38. Bc6 {[%clk 0:01:43]}  Rc4 {[%clk 0:00:40]} 39. Bb5 {[%clk 0:01:43]}  Rb4 {[%clk 0:00:41]} 40. Bd3 {[%clk 0:01:43]}  Rb3 {[%clk 0:00:41]} 41. Be2 {[%clk 0:01:43]}  Ra3 {[%clk 0:00:42]} 42. Bf3 {[%clk 0:01:38]}  Rb3 {[%clk 0:00:41]} 43. Bc6 {[%clk 0:01:38]}  Rb6 {[%clk 0:00:40]} 44. Bf3 {[%clk 0:01:36]}  Rb3 {[%clk 0:00:41]} 45. g4 {[%clk 0:01:35]}  hxg4 {[%clk 0:00:42]} 46. Bxg4 {[%clk 0:01:36]}  Rb4 {[%clk 0:00:42]} 47. Kg3 {[%clk 0:01:36]}  Rb3+ {[%clk 0:00:42]} 48. f3 {[%clk 0:01:37]}  Rb1 {[%clk 0:00:42]} 49. Bd4 {[%clk 0:01:36]}  Rd1 {[%clk 0:00:42]} 50. Be5 {[%clk 0:01:36]}  Rg1+ {[%clk 0:00:42]} 51. Kh2 {[%clk 0:01:36]}  Rb1 {[%clk 0:00:42]} 52. Bh3 {[%clk 0:01:37]}  Rc1 {[%clk 0:00:42]} 53. Bg2 {[%clk 0:01:36]}  Rd1 {[%clk 0:00:38]} 54. Kg3 {[%clk 0:01:37]}  Rg1 {[%clk 0:00:37]} 55. Kf2 {[%clk 0:01:37]}  Rc1 {[%clk 0:00:37]} 56. Bf1 {[%clk 0:01:37]}  Rc2+ {[%clk 0:00:36]} 57. Be2 {[%clk 0:01:37]}  Rc1 {[%clk 0:00:36]} 58. Bf1 {[%clk 0:01:34]}  Rc2+ {[%clk 0:00:37]} 59. Kg3 {[%clk 0:01:34]}  Rc1 {[%clk 0:00:37]} 60. Bg2 {[%clk 0:01:35]}  Rg1 {[%clk 0:00:37]} 61. Bc7 {[%clk 0:01:35]}  Rc1 {[%clk 0:00:37]} 62. Bd8 {[%clk 0:01:35]}  Rg1 {[%clk 0:00:37]} 63. Bg5 {[%clk 0:01:36]}  Rc1 {[%clk 0:00:37]} 64. Bh3 {[%clk 0:01:36]}  Rg1+ {[%clk 0:00:37]} 65. Kf2 {[%clk 0:01:36]}  Rb1 {[%clk 0:00:38]} 66. Bg4 {[%clk 0:01:37]}  Rb2+ {[%clk 0:00:38]} 67. Ke3 {[%clk 0:01:37]}  Rb3+ {[%clk 0:00:39]} 68. Ke4 {[%clk 0:01:38]}  Rb4+ {[%clk 0:00:39]} 69. Ke5 {[%clk 0:01:38]}  Rb5+ {[%clk 0:00:40]} 70. Kd6 {[%clk 0:01:39]}  Rd5+ {[%clk 0:00:40]} 71. Kc6 {[%clk 0:01:39]}  Rd1 {[%clk 0:00:41]} 72. Kc5 {[%clk 0:01:37]}  Rc1+ {[%clk 0:00:41]} 73. Kd4 {[%clk 0:01:37]}  Rd1+ {[%clk 0:00:42]} 74. Ke3 {[%clk 0:01:34]}  Re1+ {[%clk 0:00:42]} 75. Kf2 {[%clk 0:01:35]}  Rh1 {[%clk 0:00:42]} 76. Kg2 {[%clk 0:01:34]}  Rb1 {[%clk 0:00:43]} 77. Kg3 {[%clk 0:01:32]}  Rg1+ {[%clk 0:00:42]} 78. Kh2 {[%clk 0:01:33]}  Rb1 {[%clk 0:00:42]} 79. h5 {[%clk 0:01:33]}  gxh5 {[%clk 0:00:41]} 80. Bxh5+ {[%clk 0:01:34]}  Kg7 {[%clk 0:00:41]} 81. Kg3 {[%clk 0:01:33]}  Rb5 {[%clk 0:00:40]} 82. Kf2 {[%clk 0:01:33]}  Rb3 {[%clk 0:00:39]} 83. Bg4 {[%clk 0:01:28]}  Kf7 {[%clk 0:00:37]} 84. Kg3 {[%clk 0:01:26]}  Rb5 {[%clk 0:00:35]} 85. Bd8 {[%clk 0:01:27]}  Rd5 {[%clk 0:00:34]} 86. Bc7 {[%clk 0:01:27]}  Rc5 {[%clk 0:00:34]} 87. Be5 {[%clk 0:01:27]}  Ra5 {[%clk 0:00:34]} 88. Kf2 {[%clk 0:01:26]}  Ra3 {[%clk 0:00:33]} 89. Bd4 {[%clk 0:01:25]}  Rd3 {[%clk 0:00:31]} 90. Be5 {[%clk 0:01:24]}  Ra3 {[%clk 0:00:32]} 91. Kg2 {[%clk 0:01:23]}  Ra5 {[%clk 0:00:27]} 92. Kg3 {[%clk 0:01:23]}  Rb5 {[%clk 0:00:24]} 93. Bh5+ {[%clk 0:01:23]}  Ke7 {[%clk 0:00:24]} 94. Kg4 {[%clk 0:01:24]}  Rb1 {[%clk 0:00:23]} 95. Kg5 {[%clk 0:01:24]}  Rg1+ {[%clk 0:00:23]} 96. Bg4 {[%clk 0:01:25]}  Re1 {[%clk 0:00:21]} 97. Kg6 {[%clk 0:01:25]}  Re2 {[%clk 0:00:20]} 98. Kg7 {[%clk 0:01:24]}  Rg2 {[%clk 0:00:19]} 99. Bd4 {[%clk 0:01:22]}  Rg3 {[%clk 0:00:17]} 100. Bc5+ {[%clk 0:01:22]}  Kd7 {[%clk 0:00:17]} 101. Kf6 {[%clk 0:01:22]}  Kc6 {[%clk 0:00:17]} 102. Bd4 {[%clk 0:01:20]}  Kd5 {[%clk 0:00:17]} 103. Be5 {[%clk 0:01:20]}  Rg1 {[%clk 0:00:17]} 104. Bxe6+ {[%clk 0:01:21]}  Kc6 {[%clk 0:00:18]} 105. f5 {[%clk 0:01:20]}  Re1 {[%clk 0:00:18]} 106. f4 {[%clk 0:01:21]}  Re2 {[%clk 0:00:18]} 107. Bf7 {[%clk 0:01:18]}  Re3 {[%clk 0:00:16]} 108. Bg6 {[%clk 0:01:18]}  Rg3 {[%clk 0:00:15]} 109. Kg7 {[%clk 0:01:18]}  Kd7 {[%clk 0:00:15]} 110. f6 {[%clk 0:01:19]}  Rg4 {[%clk 0:00:10]} 111. f7 {[%clk 0:01:18]}  Rg1 {[%clk 0:00:09]} 112. f8=Q {[%clk 0:01:17]}  Rd1 {[%clk 0:00:10]} 113. Bf5+ {[%clk 0:01:17]}  Kc6 {[%clk 0:00:10]} 114. Qc8+ {[%clk 0:01:17]}  Kb6 {[%clk 0:00:11]} 115. Qc7+ {[%clk 0:01:14]}  Ka6 {[%clk 0:00:10]} 116. Qc6+ {[%clk 0:01:13]}  Ka7 {[%clk 0:00:08]} 117. Qc5+ {[%clk 0:01:07]}  Ka6 {[%clk 0:00:08]} 118. Bc8# {[%clk 0:01:07]} 1-0


[Site "https://www.chess.com"]

[Event "Titled Tuesday Blitz February 21 Late 2023"]
[White "Coelho, Ramyres Santana"]
[Black "Fus, Jakub"]
[WhiteFideId "2120690"]
[BlackFideId "1193023"]
[WhiteElo "1981"]
[BlackElo "2417"]
[Result "1/2-1/2"]
[Round "01"]
[TimeControl "180+2"]
[Date "2023.02.21"]
[WhiteClock "0:00:23"]
[BlackClock "0:00:14"]

1. e4 {[%clk 0:02:57]}  c5 {[%clk 0:02:59]} 2. Nf3 {[%clk 0:02:56]}  d6 {[%clk 0:02:59]} 3. d4 {[%clk 0:02:56]}  cxd4 {[%clk 0:03:00]} 4. Nxd4 {[%clk 0:02:57]}  Nf6 {[%clk 0:02:59]} 5. Nc3 {[%clk 0:02:57]}  a6 {[%clk 0:02:59]} 6. f3 {[%clk 0:02:57]}  e5 {[%clk 0:02:57]} 7. Nb3 {[%clk 0:02:52]}  Be6 {[%clk 0:02:57]} 8. Be3 {[%clk 0:02:52]}  h5 {[%clk 0:02:57]} 9. Qd2 {[%clk 0:02:52]}  Nbd7 {[%clk 0:02:58]} 10. O-O-O {[%clk 0:02:52]}  Rc8 {[%clk 0:02:57]} 11. h3 {[%clk 0:02:53]}  h4 {[%clk 0:02:56]} 12. f4 {[%clk 0:02:53]}  exf4 {[%clk 0:02:53]} 13. Bxf4 {[%clk 0:02:54]}  Ne5 {[%clk 0:02:52]} 14. Bxe5 {[%clk 0:02:48]}  dxe5 {[%clk 0:02:52]} 15. Qxd8+ {[%clk 0:02:45]}  Rxd8 {[%clk 0:02:53]} 16. Rxd8+ {[%clk 0:02:46]}  Kxd8 {[%clk 0:02:54]} 17. Na5 {[%clk 0:02:39]}  Kc7 {[%clk 0:02:52]} 18. Nc4 {[%clk 0:02:35]}  Bb4 {[%clk 0:02:48]} 19. Nxe5 {[%clk 0:02:30]}  Bxc3 {[%clk 0:02:47]} 20. bxc3 {[%clk 0:02:31]}  Nxe4 {[%clk 0:02:47]} 21. Bc4 {[%clk 0:02:23]}  Bxc4 {[%clk 0:02:38]} 22. Nxc4 {[%clk 0:02:23]}  Nxc3 {[%clk 0:02:37]} 23. Kb2 {[%clk 0:02:19]}  Ne4 {[%clk 0:02:30]} 24. Rf1 {[%clk 0:02:17]}  f6 {[%clk 0:02:30]} 25. Rf4 {[%clk 0:02:14]}  Nc5 {[%clk 0:02:20]} 26. Ne3 {[%clk 0:02:08]}  Nd7 {[%clk 0:02:15]} 27. Nf5 {[%clk 0:02:00]}  g5 {[%clk 0:02:14]} 28. Rc4+ {[%clk 0:02:01]}  Kb8 {[%clk 0:02:12]} 29. Nd6 {[%clk 0:01:54]}  Ne5 {[%clk 0:02:01]} 30. Rb4 {[%clk 0:01:49]}  b5 {[%clk 0:02:01]} 31. a4 {[%clk 0:01:48]}  Rd8 {[%clk 0:02:01]} 32. Ne4 {[%clk 0:01:38]}  Nc6 {[%clk 0:01:25]} 33. Rb3 {[%clk 0:01:38]}  Rd4 {[%clk 0:01:26]} 34. Nc5 {[%clk 0:01:27]}  b4 {[%clk 0:00:47]} 35. Nxa6+ {[%clk 0:01:24]}  Kb7 {[%clk 0:00:47]} 36. Nc5+ {[%clk 0:01:24]}  Kb6 {[%clk 0:00:47]} 37. Ne6 {[%clk 0:01:13]}  Re4 {[%clk 0:00:45]} 38. Nf8 {[%clk 0:00:58]}  Re2 {[%clk 0:00:45]} 39. Nd7+ {[%clk 0:00:57]}  Ka5 {[%clk 0:00:44]} 40. Nxf6 {[%clk 0:00:53]}  Rxg2 {[%clk 0:00:44]} 41. Ne4 {[%clk 0:00:45]}  Kxa4 {[%clk 0:00:39]} 42. Rd3 {[%clk 0:00:40]}  Ne5 {[%clk 0:00:34]} 43. Rd4 {[%clk 0:00:32]}  g4 {[%clk 0:00:25]} 44. hxg4 {[%clk 0:00:27]}  h3 {[%clk 0:00:26]} 45. Nc3+ {[%clk 0:00:25]}  Ka5 {[%clk 0:00:25]} 46. Rd5+ {[%clk 0:00:25]}  Kb6 {[%clk 0:00:25]} 47. Na4+ {[%clk 0:00:25]}  Kc6 {[%clk 0:00:23]} 48. Rxe5 {[%clk 0:00:25]}  Rxg4 {[%clk 0:00:22]} 49. Rh5 {[%clk 0:00:24]}  Rg3 {[%clk 0:00:23]} 50. Nc5 {[%clk 0:00:22]}  Re3 {[%clk 0:00:20]} 51. Nd3 {[%clk 0:00:21]}  Kd6 {[%clk 0:00:19]} 52. Nxb4 {[%clk 0:00:20]}  Ke6 {[%clk 0:00:19]} 53. Nd3 {[%clk 0:00:21]}  Kf6 {[%clk 0:00:19]} 54. Nf4 {[%clk 0:00:19]}  Rf3 {[%clk 0:00:16]} 55. Rxh3 {[%clk 0:00:19]}  Rxf4 {[%clk 0:00:16]} 56. Rb3 {[%clk 0:00:19]}  Ke6 {[%clk 0:00:16]} 57. Re3+ {[%clk 0:00:20]}  Kd6 {[%clk 0:00:16]} 58. Rb3 {[%clk 0:00:21]}  Kc5 {[%clk 0:00:16]} 59. Rc3+ {[%clk 0:00:21]}  Kb4 {[%clk 0:00:15]} 60. Rb3+ {[%clk 0:00:22]}  Kc4 {[%clk 0:00:16]} 61. Ra3 {[%clk 0:00:21]}  Rf2 {[%clk 0:00:15]} 62. Ra8 {[%clk 0:00:20]}  Rf3 {[%clk 0:00:14]} 63. Rc8+ {[%clk 0:00:20]}  Kb5 {[%clk 0:00:15]} 64. Rb8+ {[%clk 0:00:20]}  Kc4 {[%clk 0:00:14]} 65. Rd8 {[%clk 0:00:21]}  Rg3 {[%clk 0:00:14]} 66. Rc8+ {[%clk 0:00:21]}  Kb4 {[%clk 0:00:13]} 67. Rd8 {[%clk 0:00:22]}  Kc4 {[%clk 0:00:13]} 68. Rc8+ {[%clk 0:00:22]}  Kb4 {[%clk 0:00:14]} 69. c4 {[%clk 0:00:22]}  Rb3+ {[%clk 0:00:12]} 70. Kc2 {[%clk 0:00:22]}  Rc3+ {[%clk 0:00:12]} 71. Kd2 {[%clk 0:00:23]}  Rxc4 {[%clk 0:00:13]} 72. Rxc4+ {[%clk 0:00:23]}  Kxc4 {[%clk 0:00:14]} 1/2-1/2


[Site "https://www.chess.com"]

[Event "Titled Tuesday Blitz February 21 Late 2023"]
[White "Sarkar, Justin"]
[Black "Bjelobrk, Igor"]
[WhiteFideId "2010011"]
[BlackFideId "4300726"]
[WhiteElo "2309"]
[BlackElo "2403"]
[Result "0-1"]
[Round "01"]
[TimeControl "180+2"]
[Date "2023.02.21"]
[WhiteClock "0:00:02"]
[BlackClock "0:00:54"]

1. d4 {[%clk 0:02:43]}  e6 {[%clk 0:02:53]} 2. c4 {[%clk 0:02:39]}  Bb4+ {[%clk 0:02:50]} 3. Nd2 {[%clk 0:02:33]}  Nf6 {[%clk 0:02:48]} 4. Nf3 {[%clk 0:02:30]}  O-O {[%clk 0:02:48]} 5. a3 {[%clk 0:02:29]}  Be7 {[%clk 0:02:48]} 6. e4 {[%clk 0:02:26]}  d6 {[%clk 0:02:48]} 7. Bd3 {[%clk 0:02:16]}  Nbd7 {[%clk 0:02:48]} 8. O-O {[%clk 0:02:13]}  c5 {[%clk 0:02:47]} 9. e5 {[%clk 0:01:47]}  Ng4 {[%clk 0:02:46]} 10. h3 {[%clk 0:01:32]}  Nh6 {[%clk 0:02:45]} 11. exd6 {[%clk 0:01:29]}  Bxd6 {[%clk 0:02:43]} 12. Ne4 {[%clk 0:01:29]}  Be7 {[%clk 0:02:37]} 13. Bxh6 {[%clk 0:01:25]}  gxh6 {[%clk 0:02:38]} 14. d5 {[%clk 0:01:19]}  f5 {[%clk 0:02:31]} 15. Ng3 {[%clk 0:01:07]}  Nb6 {[%clk 0:02:08]} 16. dxe6 {[%clk 0:00:46]}  Bxe6 {[%clk 0:02:08]} 17. Re1 {[%clk 0:00:46]}  Bd7 {[%clk 0:01:52]} 18. Ne5 {[%clk 0:00:44]}  Bc8 {[%clk 0:01:42]} 19. Qh5 {[%clk 0:00:37]}  Bg5 {[%clk 0:01:18]} 20. h4 {[%clk 0:00:24]}  Bxh4 {[%clk 0:01:17]} 21. Nxf5 {[%clk 0:00:19]}  Bxf5 {[%clk 0:01:16]} 22. Bxf5 {[%clk 0:00:19]}  Qg5 {[%clk 0:01:16]} 23. Be6+ {[%clk 0:00:11]}  Kg7 {[%clk 0:01:16]} 24. Qxg5+ {[%clk 0:00:06]}  Bxg5 {[%clk 0:01:13]} 25. g3 {[%clk 0:00:04]}  Rae8 {[%clk 0:01:08]} 26. Bg4 {[%clk 0:00:03]}  Bf6 {[%clk 0:01:04]} 27. f4 {[%clk 0:00:03]}  Bxe5 {[%clk 0:01:04]} 28. Rxe5 {[%clk 0:00:02]}  Rxe5 {[%clk 0:01:04]} 29. fxe5 {[%clk 0:00:02]}  Nxc4 {[%clk 0:01:04]} 30. e6 {[%clk 0:00:02]}  Ne5 {[%clk 0:01:01]} 31. Bh3 {[%clk 0:00:02]}  Nf3+ {[%clk 0:00:59]} 32. Kh1 {[%clk 0:00:02]}  Nd4 {[%clk 0:00:54]} 0-1


[Site "https://www.chess.com"]

[Event "Titled Tuesday Blitz February 21 Late 2023"]
[White "Costachi, Mihnea"]
[Black "Kostiukov, Alexandr"]
[WhiteFideId "1217518"]
[BlackFideId "14108100"]
[WhiteElo "2476"]
[BlackElo "2271"]
[Result "1-0"]
[Round "01"]
[TimeControl "180+2"]
[Date "2023.02.21"]
[WhiteClock "0:00:26"]
[BlackClock "0:00:06"]

1. Nc3 {[%clk 0:03:00]}  g6 {[%clk 0:02:59]} 2. e4 {[%clk 0:03:00]}  c5 {[%clk 0:02:58]} 3. b3 {[%clk 0:02:59]}  Bg7 {[%clk 0:02:58]} 4. Bb2 {[%clk 0:03:00]}  Nc6 {[%clk 0:02:59]} 5. g3 {[%clk 0:02:58]}  e6 {[%clk 0:02:58]} 6. Bg2 {[%clk 0:02:58]}  Nge7 {[%clk 0:02:59]} 7. f4 {[%clk 0:02:57]}  O-O {[%clk 0:02:59]} 8. Nf3 {[%clk 0:02:57]}  d5 {[%clk 0:02:51]} 9. d3 {[%clk 0:02:58]}  Nd4 {[%clk 0:02:44]} 10. O-O {[%clk 0:02:52]}  Rb8 {[%clk 0:02:40]} 11. Kh1 {[%clk 0:02:50]}  b5 {[%clk 0:02:35]} 12. Rb1 {[%clk 0:02:48]}  a6 {[%clk 0:02:28]} 13. Ne2 {[%clk 0:02:46]}  Nxe2 {[%clk 0:02:22]} 14. Qxe2 {[%clk 0:02:43]}  d4 {[%clk 0:02:14]} 15. h4 {[%clk 0:02:38]}  Bb7 {[%clk 0:01:46]} 16. Rbe1 {[%clk 0:02:25]}  Qa5 {[%clk 0:01:40]} 17. a3 {[%clk 0:02:20]}  Qc7 {[%clk 0:01:36]} 18. h5 {[%clk 0:02:19]}  Rbd8 {[%clk 0:01:24]} 19. Bc1 {[%clk 0:02:10]}  f6 {[%clk 0:00:52]} 20. g4 {[%clk 0:02:03]}  Kf7 {[%clk 0:00:35]} 21. g5 {[%clk 0:01:58]}  Qd7 {[%clk 0:00:13]} 22. Bh3 {[%clk 0:01:49]}  f5 {[%clk 0:00:10]} 23. Kh2 {[%clk 0:01:43]}  Rde8 {[%clk 0:00:07]} 24. Bd2 {[%clk 0:01:38]}  Nc6 {[%clk 0:00:07]} 25. Nh4 {[%clk 0:01:34]}  Qc7 {[%clk 0:00:05]} 26. Bg2 {[%clk 0:01:22]}  Bc8 {[%clk 0:00:05]} 27. Qf3 {[%clk 0:01:21]}  Bd7 {[%clk 0:00:05]} 28. Rh1 {[%clk 0:01:19]}  Kg8 {[%clk 0:00:05]} 29. hxg6 {[%clk 0:01:19]}  hxg6 {[%clk 0:00:06]} 30. Nxg6 {[%clk 0:01:19]}  Kf7 {[%clk 0:00:07]} 31. exf5 {[%clk 0:01:08]}  exf5 {[%clk 0:00:05]} 32. Nxf8 {[%clk 0:01:09]}  Rxf8 {[%clk 0:00:05]} 33. Qh5+ {[%clk 0:00:54]}  Kg8 {[%clk 0:00:06]} 34. g6 {[%clk 0:00:54]}  Rf6 {[%clk 0:00:06]} 35. Kg1 {[%clk 0:00:44]}  Qd6 {[%clk 0:00:06]} 36. Bf3 {[%clk 0:00:30]}  Ne7 {[%clk 0:00:06]} 37. Kf2 {[%clk 0:00:28]}  Rxg6 {[%clk 0:00:06]} 38. Rxe7 {[%clk 0:00:26]} 1-0


[Site "https://www.chess.com"]

[Event "Titled Tuesday Blitz February 21 Late 2023"]
[White "Rego, Pedro Filipe"]
[Black "Rorrer, Grayson"]
[WhiteFideId "1904310"]
[BlackFideId "30944996"]
[WhiteElo "2312"]
[BlackElo "2263"]
[Result "0-1"]
[Round "01"]
[TimeControl "180+2"]
[Date "2023.02.21"]
[WhiteClock "0:01:32"]
[BlackClock "0:01:23"]

1. e4 {[%clk 0:02:59]}  c6 {[%clk 0:02:53]} 2. d4 {[%clk 0:02:58]}  d5 {[%clk 0:02:54]} 3. e5 {[%clk 0:02:59]}  c5 {[%clk 0:02:54]} 4. Nf3 {[%clk 0:02:59]}  Nc6 {[%clk 0:02:53]} 5. dxc5 {[%clk 0:02:59]}  e6 {[%clk 0:02:52]} 6. Bb5 {[%clk 0:02:57]}  Bxc5 {[%clk 0:02:49]} 7. O-O {[%clk 0:02:55]}  Ne7 {[%clk 0:02:48]} 8. c3 {[%clk 0:02:51]}  O-O {[%clk 0:02:46]} 9. Re1 {[%clk 0:02:35]}  Qb6 {[%clk 0:02:35]} 10. Qe2 {[%clk 0:02:32]}  Bxf2+ {[%clk 0:02:33]} 11. Qxf2 {[%clk 0:02:32]}  Qxb5 {[%clk 0:02:34]} 12. a4 {[%clk 0:02:18]}  Qd3 {[%clk 0:02:30]} 13. Bf4 {[%clk 0:02:16]}  Ng6 {[%clk 0:02:27]} 14. Bg3 {[%clk 0:02:15]}  Bd7 {[%clk 0:02:25]} 15. Na3 {[%clk 0:02:15]}  a6 {[%clk 0:02:18]} 16. Rad1 {[%clk 0:02:14]}  Qf5 {[%clk 0:02:18]} 17. Nc2 {[%clk 0:02:14]}  Qh5 {[%clk 0:02:12]} 18. Ncd4 {[%clk 0:02:13]}  Nxd4 {[%clk 0:02:12]} 19. cxd4 {[%clk 0:02:12]}  Bxa4 {[%clk 0:02:12]} 20. Rc1 {[%clk 0:02:12]}  Rfc8 {[%clk 0:02:11]} 21. Qd2 {[%clk 0:02:11]}  Bb5 {[%clk 0:02:06]} 22. Qf2 {[%clk 0:01:52]}  Qf5 {[%clk 0:01:56]} 23. Qd2 {[%clk 0:01:36]}  Qd3 {[%clk 0:01:51]} 24. Re3 {[%clk 0:01:35]}  Qxd2 {[%clk 0:01:45]} 25. Rxc8+ {[%clk 0:01:35]}  Rxc8 {[%clk 0:01:46]} 26. Nxd2 {[%clk 0:01:36]}  Rc2 {[%clk 0:01:41]} 27. Nb3 {[%clk 0:01:35]}  Rxb2 {[%clk 0:01:39]} 28. Nc5 {[%clk 0:01:36]}  b6 {[%clk 0:01:34]} 29. Nb7 {[%clk 0:01:34]}  Bc4 {[%clk 0:01:29]} 30. Be1 {[%clk 0:01:33]}  a5 {[%clk 0:01:27]} 31. Nd6 {[%clk 0:01:33]}  Nf4 {[%clk 0:01:23]} 32. Rc3 {[%clk 0:01:32]}  Ne2+ {[%clk 0:01:23]} 0-1


[Site "https://www.chess.com"]